bitfinex/quotes_BTCUSD_20250412
["timestamp","ask_amount","ask_price","bid_price","bid_amount"]
[1744465493076,0.40046224,84082.0,84081.0,0.44881159]
[1744465494692,0.40046224,84082.0,84081.0,0.50173138]
[1744465497392,0.0004226,84115.0,84114.0,0.237772]
[1744465497805,6e-07,84115.0,84114.0,0.56822242]
[1744465497939,2e-07,84116.0,84115.0,0.1998]
[1744465498120,2e-07,84116.0,84115.0,0.3280726]
[1744465498324,2e-07,84116.0,84115.0,0.20723106]
[1744465498561,2e-07,84116.0,84115.0,0.21094659]
[1744465498766,2e-07,84116.0,84115.0,0.21108595]
[1744465499238,2e-07,84116.0,84115.0,0.33192749]
[1744465499720,2e-07,84116.0,84115.0,0.21108595]
[1744465501089,0.0100002,84116.0,84115.0,0.21108595]
[1744465501298,0.0100002,84116.0,84115.0,0.00385489]
[1744465501499,0.13084174,84116.0,84115.0,0.00385489]
[1744465501704,0.36860774,84116.0,84115.0,0.00385489]
[1744465502306,0.13084174,84116.0,84115.0,0.00013936]
[1744465502469,0.0100002,84116.0,84115.0,0.00013936]
[1744465502870,0.0100002,84116.0,84115.0,0.19993936]
[1744465503076,2e-07,84116.0,84115.0,0.19993936]
[1744465503282,2e-07,84116.0,84115.0,0.73135638]
[1744465503487,0.002,84139.0,84138.0,0.437504]
[1744465503683,0.002,84139.0,84138.0,0.96654352]
[1744465504485,0.002,84139.0,84138.0,0.84570198]
[1744465505108,1e-06,84139.0,84138.0,0.96654352]
[1744465505649,1e-06,84139.0,84138.0,0.437504]
[1744465505650,0.010001,84139.0,84138.0,0.437504]
[1744465505854,0.010001,84139.0,84136.0,0.1998]
[1744465506007,0.010001,84139.0,84133.0,0.237717]
[1744465506008,0.010001,84139.0,84138.0,0.437504]
[1744465506576,0.010001,84139.0,84130.0,0.011886]
[1744465506577,0.011885,84135.0,84127.0,0.1998]
[1744465506788,0.13272654,84134.0,84131.0,0.1998]
[1744465506963,0.011885,84133.0,84128.0,0.237732]
[1744465507160,0.52084154,84132.0,84131.0,0.1998]
[1744465507320,0.68084154,84132.0,84129.0,0.1998]
[1744465507525,0.69272754,84132.0,84129.0,0.1998]
[1744465507733,0.011887,84123.0,84120.0,0.1998]
[1744465507927,0.011887,84123.0,84080.0,0.33141643]
[1744465507928,0.18,84123.0,84122.0,0.1998]
[1744465508353,0.4,84132.0,84131.0,0.1998]
[1744465508639,0.56,84132.0,84131.0,0.1998]
[1744465509723,0.4,84132.0,84131.0,0.1998]
[1744465509875,1e-06,84139.0,84138.0,0.1998]
[1744465510278,1e-06,84139.0,84138.0,0.437504]
[1744465511779,1e-06,84139.0,84138.0,0.55834554]
[1744465512190,1e-06,84139.0,84138.0,0.4412166]
[1744465512399,1e-06,84139.0,84138.0,0.44864189]
[1744465512507,1e-06,84139.0,84138.0,0.56948343]
[1744465512977,1e-07,84150.0,84149.0,0.1998]
[1744465513211,1e-07,84150.0,84149.0,0.24196]
[1744465513355,1e-07,84150.0,84148.0,0.237676]
[1744465513568,0.1700001,84150.0,84149.0,0.1998]
[1744465513965,0.1700001,84150.0,84146.0,0.23768]
[1744465514190,0.1700001,84150.0,84138.0,0.41191058]
[1744465514191,0.011883,84148.0,84145.0,0.1998]
[1744465514406,1e-07,84150.0,84149.0,0.1998]
[1744465514596,0.1200001,84150.0,84149.0,0.1998]
[1744465514755,1e-07,84150.0,84149.0,0.1998]
[1744465515828,1e-07,84150.0,84149.0,0.2072254]
[1744465516150,1e-07,84150.0,84149.0,0.20960188]
[1744465516355,0.0004226,84166.0,84165.0,0.437428]
[1744465516600,0.0004226,84166.0,84165.0,0.97017924]
[1744465516760,0.0004226,84166.0,84165.0,0.97760464]
[1744465516973,0.0004226,84166.0,84165.0,0.8567631]
[1744465517321,0.0004226,84166.0,84165.0,0.97760464]
[1744465517493,0.0004226,84166.0,84165.0,0.8567631]
[1744465518152,0.0004226,84166.0,84165.0,0.97760464]
[1744465518354,6e-07,84166.0,84165.0,0.97760464]
[1744465519501,6e-07,84166.0,84165.0,0.8567631]
[1744465520624,0.0004226,84167.0,84166.0,0.1998]
[1744465520625,2e-07,84167.0,84166.0,0.1998]
[1744465520767,2e-07,84167.0,84166.0,0.32806694]
[1744465520967,2e-07,84167.0,84166.0,0.73997664]
[1744465521174,0.013876,84199.0,84194.0,0.237546]
[1744465521175,0.002,84199.0,84194.0,0.237546]
[1744465521372,0.12084154,84198.0,84194.0,0.237546]
[1744465521596,0.28084154,84198.0,84194.0,0.237546]
[1744465521770,0.16,84198.0,84195.0,0.237543]
[1744465521951,0.16,84198.0,84197.0,0.1998]
[1744465523482,1e-07,84199.0,84198.0,0.437335]
[1744465523801,0.0004226,84224.0,84216.0,0.437284]
[1744465524200,0.01056127,84217.0,84216.0,0.437284]
[1744465524648,2.7e-07,84217.0,84216.0,0.56183535]
[1744465524855,0.0004226,84224.0,84223.0,0.437264]
[1744465525067,0.0004226,84224.0,84223.0,0.55810554]
[1744465525446,0.0004226,84224.0,84223.0,0.56552405]
[1744465525645,6e-07,84229.0,84228.0,0.43725]
[1744465525854,1e-06,84235.0,84234.0,0.5398]
[1744465526048,1e-06,84235.0,84234.0,1.13991454]
[1744465526250,0.249149,84287.0,84250.0,0.437188]
[1744465526595,0.00056122,84251.0,84250.0,0.55802954]
[1744465526713,1e-06,84259.0,84258.0,0.437166]
[1744465526911,1e-06,84259.0,84258.0,0.79976754]
[1744465527119,1e-06,84259.0,84258.0,0.83588652]
[1744465527356,0.0451,84313.0,84288.0,0.437081]
[1744465527576,0.0024635,84289.0,84288.0,0.56534105]
[1744465527774,0.0024635,84289.0,84288.0,0.59771689]
[1744465527997,0.1424635,84289.0,84288.0,0.44449951]
[1744465528200,0.1424635,84289.0,84288.0,0.44820932]
[1744465528540,0.13653299,84289.0,84288.0,0.44820932]
[1744465528695,0.0100775,84314.0,84301.0,0.437045]
[1744465528896,0.17056113,84302.0,84301.0,0.44446351]
[1744465529468,0.00056113,84302.0,84301.0,0.56901486]
[1744465529603,0.00056113,84302.0,84301.0,0.33176986]
[1744465529804,0.01056113,84302.0,84301.0,0.21092832]
[1744465530998,0.01056113,84302.0,84301.0,0.44817332]
[1744465531206,0.01056113,84302.0,84301.0,0.01112832]
[1744465531449,0.13140267,84302.0,84301.0,0.01112832]
[1744465531864,0.19424352,84302.0,84301.0,0.00741851]
[1744465532288,0.19424352,84302.0,84269.0,0.237333]
[1744465532289,0.011865,84278.0,84275.0,0.1998]
[1744465532508,0.249263,84248.0,84247.0,0.1998]
[1744465532724,0.19101095,84248.0,84224.0,0.23746]
[1744465532893,0.19101095,84248.0,84211.0,0.26196]
[1744465532894,0.237399,84246.0,84212.0,0.237494]
[1744465533113,0.53824054,84246.0,84218.0,0.011873]
[1744465533239,0.53824054,84246.0,84210.0,0.37752419]
[1744465533439,0.94138139,84246.0,84210.0,0.14002319]
[1744465533658,0.237428,84236.0,84210.0,0.14002319]
[1744465534040,0.28084154,84236.0,84226.0,0.1998]
[1744465534243,0.28084154,84236.0,84235.0,0.09007834]
[1744465534392,0.29538239,84236.0,84235.0,0.0004635]
[1744465536003,0.63538239,84236.0,84235.0,0.0004635]
[1744465536204,0.25197685,84233.0,84201.0,0.0028434]
[1744465536408,0.46084154,84232.0,84231.0,0.00213902]
[1744465536746,0.64538239,84232.0,84231.0,0.00213902]
[1744465537048,0.65408387,84232.0,84231.0,0.00213902]
[1744465538223,0.65408387,84232.0,84201.0,0.0028434]
[1744465538224,0.249393,84204.0,84201.0,0.0028434]
[1744465538561,0.237524,84202.0,84201.0,0.00298227]
[1744465538722,0.51836554,84202.0,84201.0,0.00298227]
[1744465539541,0.28084154,84202.0,84201.0,0.00298227]
[1744465539741,0.16,84202.0,84201.0,0.20278227]
[1744465539936,0.011874,84213.0,84208.0,0.1998]
[1744465540137,0.18,84213.0,84208.0,0.1998]
[1744465540348,0.011874,84211.0,84208.0,0.1998]
[1744465540558,0.16,84211.0,84209.0,0.1998]
[1744465540756,0.16,84211.0,84210.0,0.1998]
[1744465543063,0.237446,84230.0,84221.0,0.1998]
[1744465543264,0.18,84226.0,84224.0,0.1]
[1744465543469,0.18,84226.0,84225.0,0.337459]
[1744465543612,1.2218,84258.0,84251.0,0.1998]
[1744465543613,0.011868,84256.0,84251.0,0.1998]
[1744465543813,0.237399,84246.0,84245.0,0.1998]
[1744465544007,0.237399,84246.0,84234.0,0.1998]
[1744465544008,0.011871,84235.0,84234.0,0.1998]
[1744465544224,0.011872,84227.0,84221.0,0.1998]
[1744465544428,0.17,84227.0,84222.0,0.011873]
[1744465544674,0.17,84227.0,84225.0,0.1998]
[1744465544878,0.17,84227.0,84221.0,0.1998]
[1744465545052,0.181872,84227.0,84221.0,0.437269]
[1744465545246,0.181872,84227.0,84221.0,0.1998]
[1744465545455,0.181872,84227.0,84221.0,0.437269]
[1744465545456,0.17,84227.0,84221.0,0.437269]
[1744465545653,0.17,84227.0,84223.0,0.349135]
[1744465545855,0.17,84227.0,84223.0,0.337262]
[1744465546035,0.17,84227.0,84226.0,0.1998]
[1744465547298,0.01187,84242.0,84235.0,0.437228]
[1744465547503,0.249295,84238.0,84235.0,0.1998]
[1744465547707,0.011872,84230.0,84227.0,0.1998]
[1744465547861,0.249331,84225.0,84224.0,0.1998]
[1744465548070,0.161872,84225.0,84224.0,0.1998]
[1744465548264,0.011873,84222.0,84218.0,0.40819798]
[1744465548464,0.011873,84224.0,84221.0,0.1998]
[1744465548691,0.16,84224.0,84219.0,0.237475]
[1744465548889,0.13271254,84237.0,84235.0,0.1998]
[1744465549093,0.237428,84236.0,84235.0,0.1998]
[1744465549292,0.407428,84236.0,84235.0,0.1998]
[1744465549489,0.011871,84232.0,84231.0,0.1998]
[1744465549697,0.141871,84232.0,84231.0,0.1998]
[1744465550071,0.13,84232.0,84231.0,0.1998]
[1744465551321,0.237469,84222.0,84218.0,0.40819798]
[1744465551492,0.237469,84222.0,84205.0,0.1]
[1744465551493,0.011875,84206.0,84205.0,0.1]
[1744465551693,0.249393,84204.0,84203.0,0.1998]
[1744465551920,0.419393,84204.0,84201.0,0.0028434]
[1744465552075,0.237524,84202.0,84201.0,0.0028434]
[1744465552283,0.52836554,84202.0,84201.0,0.0028434]
[1744465552965,0.52836554,84202.0,84201.0,0.00298227]
[1744465553171,0.29084154,84202.0,84201.0,0.00298227]
[1744465553304,0.057374,84213.0,84201.0,0.00298227]
[1744465553305,0.0455,84229.0,84211.0,0.011874]
[1744465553488,0.0455,84229.0,84218.0,0.1998]
[1744465553489,0.23747,84221.0,84218.0,0.1998]
[1744465553696,0.237477,84219.0,84218.0,0.1998]
[1744465553896,0.50831854,84219.0,84218.0,0.0998]
[1744465554388,0.50831854,84219.0,84218.0,0.1998]
[1744465554763,0.27084154,84219.0,84218.0,0.1998]
[1744465555140,0.15,84219.0,84218.0,0.1998]
[1744465555561,0.237443,84231.0,84229.0,0.1998]
[1744465555740,0.23747,84221.0,84220.0,0.1998]
[1744465555938,0.17,84221.0,84220.0,0.1998]
[1744465558604,0.237487,84215.0,84214.0,0.1998]
[1744465558796,0.237495,84212.0,84208.0,0.00013887]
[1744465559001,0.16,84212.0,84211.0,0.1998]
[1744465560350,0.11229183,84212.0,84211.0,0.1998]
[1744465560567,0.011869,84247.0,84233.0,0.011871]
[1744465560767,0.29084154,84247.0,84245.0,0.237402]
[1744465560937,0.17,84247.0,84245.0,0.237402]
[1744465561154,0.17,84247.0,84246.0,0.1998]
[1744465561516,0.17,84247.0,84246.0,0.437199]
[1744465561712,0.011864,84283.0,84266.0,0.011867]
[1744465562020,0.19,84283.0,84282.0,0.1998]
[1744465562219,0.0004222,84302.0,84288.0,0.437081]
[1744465562337,0.00246359,84289.0,84288.0,0.55792254]
[1744465562871,5.9e-07,84289.0,84288.0,0.55792254]
[1744465563224,5.9e-07,84289.0,84288.0,0.56533412]
[1744465563335,5.9e-07,84289.0,84288.0,0.36553412]
[1744465563544,5.9e-07,84289.0,84288.0,0.24469258]
[1744465563756,5.9e-07,84289.0,84288.0,0.56770666]
[1744465564002,0.0004222,84302.0,84301.0,0.437045]
[1744465564149,0.00046852,84302.0,84301.0,0.437045]
[1744465564349,0.17046852,84302.0,84297.0,0.237255]
[1744465564554,0.17046852,84302.0,84285.0,0.237288]
[1744465564555,0.40771052,84302.0,84301.0,0.20721158]
[1744465564757,0.40771052,84302.0,84301.0,0.00741158]
[1744465564968,0.52855206,84302.0,84301.0,0.00741158]
[1744465565169,0.94750257,84302.0,84301.0,0.00741158]
[1744465565394,0.96204342,84302.0,84301.0,5.8e-07]
[1744465565690,0.011866,84271.0,84267.0,0.0998]
[1744465565929,0.011866,84271.0,84251.0,0.249253]
[1744465565930,0.237401,84246.0,84233.0,0.237435]
[1744465566167,0.237405,84244.0,84222.0,0.011873]
[1744465566420,0.16,84244.0,84238.0,0.1998]
[1744465566685,0.16,84244.0,84223.0,0.13509341]
[1744465566686,0.16,84244.0,84243.0,0.28941484]
[1744465566893,0.16,84244.0,84243.0,0.1998]
[1744465567047,0.1601388,84244.0,84240.0,0.1998]
[1744465567254,0.1601388,84244.0,84236.0,0.011871]
[1744465567255,8e-07,84244.0,84243.0,0.1998]
[1744465567458,0.011862,84296.0,84287.0,0.237283]
[1744465567660,0.011863,84290.0,84287.0,0.1998]
[1744465567861,0.17013893,84290.0,84289.0,0.1998]
[1744465568069,0.17013893,84290.0,84289.0,0.437078]
[1744465568260,0.00013893,84290.0,84289.0,0.437078]
[1744465568914,0.00013893,84290.0,84289.0,0.1998]
[1744465569102,0.18200193,84290.0,84287.0,0.1998]
[1744465569341,0.17013893,84290.0,84289.0,0.437078]
[1744465569775,0.17013893,84290.0,84289.0,0.1998]
[1744465571307,0.00013893,84290.0,84289.0,0.32064154]
[1744465571553,0.00013893,84290.0,84289.0,0.72883952]
[1744465571734,9.3e-07,84290.0,84289.0,1.06883952]
[1744465572510,0.0100775,84314.0,84299.0,0.011862]
[1744465572712,0.0100775,84314.0,84301.0,0.1998]
[1744465572915,0.0100775,84314.0,84301.0,0.32064154]
[1744465573109,0.0219375,84314.0,84301.0,0.1998]
[1744465573314,0.01186,84310.0,84301.0,0.1998]
[1744465573724,0.01186,84313.0,84301.0,0.1998]
[1744465573938,0.0219375,84314.0,84301.0,0.20217224]
[1744465574225,0.01186,84310.0,84301.0,0.1998]
[1744465574441,0.011861,84308.0,84301.0,0.1998]
[1744465574639,0.0219375,84314.0,84301.0,0.1998]
[1744465574840,0.011861,84304.0,84301.0,0.1998]
[1744465575097,0.01186,84310.0,84301.0,0.1998]
[1744465575302,0.011861,84306.0,84301.0,0.437045]
[1744465575435,0.249081,84310.0,84301.0,0.437045]
[1744465575652,0.011861,84308.0,84301.0,0.437045]
[1744465575833,0.011861,84306.0,84301.0,0.437045]
[1744465576075,0.01186,84310.0,84301.0,0.437045]
[1744465576295,0.0100775,84314.0,84301.0,0.437045]
[1744465576436,0.0100775,84314.0,84301.0,0.55788654]
[1744465577294,0.0100775,84314.0,84301.0,0.437045]
[1744465577622,0.0100775,84314.0,84301.0,0.55788654]
[1744465579138,0.0100775,84314.0,84301.0,0.437045]
[1744465579341,0.2376642,84302.0,84301.0,0.1998]
[1744465579519,0.2376642,84302.0,84301.0,0.437045]
[1744465579520,0.0004222,84302.0,84301.0,0.437045]
[1744465580046,0.0004222,84302.0,84301.0,0.55788654]
[1744465580404,0.0004222,84302.0,84301.0,0.437045]
[1744465581136,0.0004222,84302.0,84301.0,0.1998]
[1744465582127,0.0004222,84302.0,84301.0,0.32301374]
[1744465582314,0.0004222,84302.0,84301.0,0.32064154]
[1744465583177,0.237157,84332.0,84315.0,0.437005]
[1744465583399,0.00056066,84316.0,84315.0,0.1998]
[1744465583957,0.11056066,84316.0,84315.0,0.1998]
[1744465584261,0.11056066,84316.0,84315.0,0.437005]
[1744465584589,0.11056066,84316.0,84315.0,0.1998]
[1744465586336,0.11056066,84316.0,84315.0,0.20217204]
[1744465586568,0.00056066,84316.0,84315.0,0.32301341]
[1744465586769,0.00056066,84316.0,84315.0,0.32064154]
[1744465587658,0.00046136,84316.0,84315.0,0.32064154]
[1744465588379,2e-07,84323.0,84322.0,0.776986]
[1744465588594,2e-07,84323.0,84322.0,0.89782754]
[1744465588788,2e-07,84323.0,84322.0,0.90523659]
[1744465588987,2e-07,84323.0,84322.0,0.00740905]
[1744465589191,2e-07,84323.0,84322.0,0.20720905]
[1744465589511,0.15294292,84323.0,84322.0,0.00740905]
[1744465589706,0.15294292,84323.0,84321.0,0.1998]
[1744465589707,0.237186,84322.0,84321.0,0.1998]
[1744465589909,0.237202,84316.0,84315.0,9.1e-07]
[1744465590110,0.62078439,84316.0,84315.0,9.1e-07]
[1744465590313,0.435802,84316.0,84315.0,9.1e-07]
[1744465590515,0.237214,84312.0,84310.0,0.1998]
[1744465590722,0.249092,84306.0,84301.0,0.1998]
[1744465590922,0.249092,84306.0,84283.0,0.011864]
[1744465590923,0.011861,84304.0,84303.0,0.1998]
[1744465591123,0.181861,84304.0,84303.0,0.1998]
[1744465591584,0.17,84304.0,84303.0,0.1998]
[1744465591796,0.24908,84310.0,84309.0,0.1998]
[1744465592033,0.01186,84312.0,84309.0,0.1998]
[1744465592247,0.14186,84312.0,84311.0,0.1998]
[1744465592458,0.011862,84296.0,84293.0,0.1998]
[1744465592619,0.011864,84285.0,84282.0,0.00370664]
[1744465592858,0.181864,84285.0,84282.0,0.00370664]
[1744465593083,0.237292,84284.0,84282.0,0.20350664]
[1744465593311,0.257292,84284.0,84283.0,0.1998]
[1744465593541,0.02,84284.0,84283.0,0.1998]
[1744465593772,0.02,84284.0,84282.0,0.20350664]
[1744465594011,0.02,84284.0,84283.0,0.1998]
[1744465594241,0.02,84284.0,84283.0,0.437095]
[1744465594515,0.0486,84320.0,84318.0,0.237196]
[1744465594748,0.011858,84327.0,84322.0,0.1998]
[1744465594983,0.011858,84327.0,84319.0,0.1998]
[1744465594984,0.237191,84320.0,84319.0,0.1998]
[1744465595204,0.011859,84322.0,84321.0,0.1998]
[1744465595454,0.011858,84325.0,84322.0,0.1998]
[1744465595705,0.17,84325.0,84322.0,0.1998]
[1744465595938,0.1819968,84325.0,84322.0,0.1998]
[1744465596148,0.1701388,84325.0,84322.0,0.1998]
[1744465596356,0.1701388,84325.0,84324.0,0.1998]
[1744465596357,8e-07,84325.0,84324.0,0.1998]
[1744465596553,5e-07,84336.0,84335.0,0.436949]
[1744465596756,5e-07,84336.0,84335.0,0.55779054]
[1744465596877,5e-07,84336.0,84335.0,0.56149464]
[1744465598092,0.0018215,84379.0,84378.0,0.237028]
[1744465598298,0.1618215,84379.0,84378.0,0.237028]
[1744465598652,0.16228454,84379.0,84378.0,0.436828]
[1744465598850,0.00228454,84379.0,84378.0,0.436828]
[1744465598995,0.00228454,84379.0,84378.0,0.4405321]
[1744465599199,0.17228454,84379.0,84378.0,0.0037041]
[1744465599404,0.17228454,84379.0,84378.0,0.2035041]
[1744465599812,0.17228454,84379.0,84378.0,0.0037041]
[1744465600016,0.29312608,84379.0,84378.0,0.0037041]
[1744465600213,0.25158585,84372.0,84371.0,0.0037041]
[1744465600397,0.51788654,84372.0,84371.0,0.0037041]
[1744465600608,0.16,84372.0,84371.0,0.4405521]
[1744465600847,0.00228454,84379.0,84378.0,0.436828]
[1744465601057,0.24930954,84379.0,84378.0,0.1998]
[1744465601255,0.237042,84373.0,84371.0,0.0037041]
[1744465601484,0.15,84373.0,84372.0,0.1998]
[1744465602040,0.00228454,84379.0,84378.0,0.436828]
[1744465602214,0.01228454,84379.0,84378.0,0.436828]
[1744465602416,0.00228454,84379.0,84378.0,0.44407996]
[1744465602841,0.11228454,84379.0,84378.0,0.20720579]
[1744465603367,0.11228454,84379.0,84378.0,0.21090989]
[1744465603866,0.00228454,84379.0,84378.0,0.33175143]
[1744465604070,0.00228454,84379.0,84378.0,0.21090989]
[1744465604297,0.11228454,84379.0,84378.0,0.01110989]
[1744465604465,0.11228454,84379.0,84378.0,0.21090989]
[1744465604667,0.11228454,84379.0,84378.0,0.01110989]
[1744465604873,0.23312608,84379.0,84378.0,0.01110989]
[1744465605531,0.06466492,84379.0,84378.0,0.01110989]
[1744465605733,0.011851,84374.0,84371.0,0.1998]
[1744465605948,0.15,84374.0,84373.0,0.1998]
[1744465606152,0.15,84374.0,84373.0,0.32064154]
[1744465606302,0.0004214,84400.0,84373.0,0.32064154]
[1744465606303,0.0004214,84400.0,84392.0,0.011849]
[1744465606505,0.011848,84397.0,84392.0,0.1998]
[1744465606712,0.011848,84397.0,84387.0,0.1998]
[1744465606713,0.011849,84390.0,84387.0,0.1998]
[1744465606913,0.01185,84386.0,84385.0,0.1998]
[1744465607262,0.02,84386.0,84385.0,0.1998]
[1744465607392,0.02,84386.0,84385.0,0.436808]
[1744465607956,0.02,84386.0,84385.0,0.1998]
[1744465608158,0.02,84386.0,84385.0,0.20216994]
[1744465608315,0.01281127,84398.0,84385.0,0.20216994]
[1744465608316,0.01281127,84398.0,84397.0,0.436775]
[1744465608517,0.03281127,84398.0,84397.0,0.44417892]
[1744465609534,0.03281127,84398.0,84397.0,0.20720392]
[1744465610127,0.03281127,84398.0,84397.0,0.00740392]
[1744465610128,0.16819366,84398.0,84397.0,0.00740392]
[1744465610509,0.01454085,84393.0,84391.0,0.1998]
[1744465610711,0.01454085,84393.0,84380.0,0.1998]
[1744465610712,0.01185,84383.0,84380.0,0.1998]
[1744465610965,0.232028,84378.0,84377.0,0.1998]
[1744465611167,0.14115283,84378.0,84377.0,0.1998]
[1744465611658,0.011852,84369.0,84368.0,0.1998]
[1744465611924,0.011852,84369.0,84363.0,0.011853]
[1744465611925,0.01454085,84384.0,84382.0,0.1998]
[1744465612128,0.011852,84372.0,84371.0,0.1998]
[1744465612341,0.171852,84372.0,84371.0,0.1998]
[1744465612539,0.16,84372.0,84359.0,0.23708]
[1744465612855,0.011852,84370.0,84369.0,0.1998]
[1744465613060,0.02,84370.0,84369.0,0.1998]
[1744465613874,0.237042,84374.0,84371.0,0.1998]
[1744465614073,0.011852,84372.0,84371.0,0.1998]
[1744465614316,0.171852,84372.0,84371.0,0.1998]
[1744465614785,0.16,84372.0,84371.0,0.1998]
[1744465615001,0.16,84372.0,84352.0,0.237101]
[1744465615002,0.011852,84369.0,84360.0,0.1998]
[1744465615219,0.011852,84369.0,84345.0,0.40819798]
[1744465615220,0.011854,84357.0,84355.0,0.1998]
[1744465615435,0.011854,84357.0,84350.0,0.1998]
[1744465615436,0.011855,84351.0,84350.0,0.1998]
[1744465615652,0.171855,84351.0,84350.0,0.1998]
[1744465615864,0.011855,84350.0,84346.0,0.1998]
[1744465616074,0.011855,84349.0,84347.0,0.1998]
[1744465616292,0.011855,84349.0,84342.0,0.23759124]
[1744465616293,0.15,84349.0,84348.0,0.1998]
[1744465616501,0.15,84349.0,84348.0,0.436912]
[1744465616712,0.011852,84372.0,84367.0,0.237057]
[1744465616928,0.011852,84369.0,84366.0,0.1998]
[1744465617160,0.011852,84369.0,84365.0,0.1998]
[1744465617161,0.011853,84366.0,84365.0,0.1998]
[1744465617373,0.01,84366.0,84365.0,0.1998]
[1744465617602,0.01,84366.0,84337.0,0.011857]
[1744465617603,0.011855,84346.0,84337.0,0.011857]
[1744465617778,0.011854,84354.0,84353.0,0.1998]
[1744465618007,0.248914,84367.0,84364.0,0.1998]
[1744465618209,0.237067,84364.0,84363.0,0.1998]
[1744465618347,0.07,84364.0,84363.0,0.1998]
[1744465618566,0.07,84364.0,84363.0,0.43687]
[1744465618790,0.07,84364.0,84363.0,0.1998]
[1744465620003,0.307067,84364.0,84363.0,0.1998]
[1744465620404,0.011854,84354.0,84353.0,0.1998]
[1744465620732,0.02196349,84364.0,84363.0,0.1998]
[1744465620969,0.01185,84386.0,84375.0,0.011851]
[1744465621161,0.237011,84384.0,84383.0,0.1998]
[1744465621370,0.01185,84382.0,84381.0,0.1998]
[1744465621595,0.02196349,84384.0,84383.0,0.1998]
[1744465622323,0.237014,84383.0,84381.0,0.1998]
[1744465622540,0.011851,84377.0,84376.0,0.1998]
[1744465622734,0.181851,84377.0,84376.0,0.1998]
[1744465622970,0.181851,84377.0,84362.0,0.011853]
[1744465622971,0.35454085,84376.0,84343.0,0.1998]
[1744465623176,0.011858,84326.0,84323.0,1.26686]
[1744465623382,0.011858,84326.0,84325.0,0.1998]
[1744465623637,0.18,84326.0,84322.0,0.237186]
[1744465623875,0.011856,84339.0,84332.0,0.1998]
[1744465624127,0.237179,84325.0,84324.0,0.1998]
[1744465624308,0.237149,84335.0,84333.0,0.1998]
[1744465624516,0.06,84335.0,84333.0,0.1998]
[1744465624721,0.02208483,84334.0,84333.0,0.1998]
[1744465624929,0.03208483,84334.0,84333.0,0.436955]
[1744465625259,0.03208483,84334.0,84333.0,0.1998]
[1744465625468,0.02208483,84334.0,84333.0,0.1598]
[1744465625696,0.237163,84330.0,84329.0,0.0008452]
[1744465625899,0.237151,84335.0,84333.0,0.1]
[1744465626055,0.249012,84333.0,84332.0,0.1598]
[1744465626313,0.25166485,84344.0,84338.0,0.1598]
[1744465626314,0.011856,84343.0,84338.0,0.1598]
[1744465626513,0.27899,84341.0,84338.0,0.1598]
[1744465626719,0.02639685,84339.0,84336.0,0.1598]
[1744465626927,0.237163,84330.0,84315.0,0.01186]
[1744465627128,0.47254539,84330.0,84303.0,0.249098]
[1744465627426,0.49464465,84330.0,84325.0,0.1598]
[1744465627667,0.49464465,84330.0,84329.0,0.1606452]
[1744465628069,0.49464465,84330.0,84329.0,0.0008452]
[1744465630238,0.47254539,84330.0,84329.0,0.0008452]
[1744465632488,0.1,84330.0,84329.0,0.1606452]
[1744465632693,0.248992,84340.0,84339.0,0.1598]
[1744465632919,0.011857,84332.0,84329.0,0.1606452]
[1744465633272,0.12084154,84331.0,84330.0,0.1598]
[1744465633395,0.17,84331.0,84330.0,0.1598]
[1744465633596,0.011857,84336.0,84331.0,0.011858]
[1744465633846,0.011857,84337.0,84335.0,0.1598]
[1744465634093,0.237146,84336.0,84335.0,0.1598]
[1744465634333,0.01,84336.0,84335.0,0.1598]
[1744465634546,0.011855,84352.0,84346.0,0.237115]
[1744465634748,0.248974,84346.0,84343.0,0.1598]
[1744465634891,0.418974,84346.0,84343.0,0.1598]
[1744465635382,0.17,84346.0,84343.0,0.1598]
[1744465635600,0.181855,84346.0,84343.0,0.1598]
[1744465636465,0.17,84346.0,84343.0,0.1598]
[1744465636708,0.011856,84342.0,84339.0,0.1598]
[1744465636911,0.181856,84342.0,84341.0,0.1598]
[1744465637109,0.17,84342.0,84341.0,0.1598]
[1744465637894,0.248959,84351.0,84348.0,0.0598]
[1744465638218,0.011855,84350.0,84349.0,0.1]
[1744465638561,0.15,84350.0,84349.0,0.1]
[1744465638737,0.011854,84355.0,84349.0,0.1]
[1744465638738,0.011853,84360.0,84354.0,0.237095]
[1744465638957,0.237093,84355.0,84353.0,0.1598]
[1744465639163,0.53978854,84355.0,84351.0,0.1598]
[1744465639396,0.248967,84348.0,84347.0,0.1598]
[1744465639618,0.53980854,84348.0,84347.0,0.1598]
[1744465639827,0.181855,84348.0,84347.0,0.1598]
[1744465640031,0.17,84348.0,84347.0,0.1598]
[1744465640872,0.29084154,84348.0,84347.0,0.1598]
[1744465641217,0.237155,84333.0,84332.0,0.00046224]
[1744465641667,0.011857,84335.0,84332.0,0.00046224]
[1744465641844,0.249,84337.0,84332.0,0.00046224]
[1744465642043,0.011857,84335.0,84332.0,0.00046224]
[1744465642342,0.011857,84335.0,84334.0,0.1598]
[1744465643120,0.399008,84335.0,84334.0,0.1598]
[1744465643300,0.25169585,84333.0,84332.0,2.4e-07]
[1744465643501,0.54253739,84333.0,84332.0,2.4e-07]
[1744465643683,0.54253739,84333.0,84321.0,4.4e-07]
[1744465643684,0.01454085,84326.0,84321.0,4.4e-07]
[1744465643905,0.25173785,84318.0,84317.0,7.1e-07]
[1744465644103,0.49494244,84318.0,84317.0,7.1e-07]
[1744465644312,0.011859,84323.0,84286.0,0.09045704]
[1744465644313,0.261,84335.0,84334.0,0.1598]
[1744465644525,0.261,84335.0,84332.0,0.249012]
[1744465644526,0.0493214,84406.0,84377.0,0.071651]
[1744465644743,0.0526724,84398.0,84389.0,0.0598]
[1744465644973,0.0526724,84398.0,84377.0,0.1598]
[1744465644974,0.01185,84388.0,84377.0,0.1598]
[1744465645228,0.011852,84370.0,84364.0,0.1]
[1744465645445,0.16,84370.0,84369.0,0.1598]